bitfinex/quotes_ETHUSD_20220113
["timestamp","ask_amount","ask_price","bid_price","bid_amount"]
[1642076224654,0.00170527,3347.7,3347.3,2.64614464]
[1642076224850,0.00113685,3347.6,3347.4,2.59313708]
[1642076225043,0.00113685,3347.6,3347.5,6.0633569]
[1642076225244,0.74661,3347.9,3347.5,6.0633569]
[1642076225444,0.74661,3347.9,3347.5,7.5565769]
[1642076225445,0.00113685,3347.6,3347.5,7.5565769]
[1642076225646,0.00227369,3347.8,3347.5,7.5565769]
[1642076225848,0.74661,3347.9,3347.5,7.5565769]
[1642076225849,0.00113685,3347.6,3347.5,7.5565769]
[1642076226050,0.00227369,3347.8,3347.5,7.05680698]
[1642076226251,0.00113685,3347.6,3347.5,7.05680698]
[1642076226451,0.74892369,3347.8,3347.5,1.49322]
[1642076226651,0.00113685,3347.6,3347.5,0.99325735]
[1642076226852,0.00113685,3347.6,3347.5,4.59325735]
[1642076227052,0.00113685,3347.6,3347.5,5.91488459]
[1642076227753,0.00113685,3347.6,3347.5,6.88890814]
[1642076228386,0.00113685,3347.6,3347.5,6.39581886]
[1642076228591,0.00113685,3347.6,3347.5,6.06744898]
[1642076228790,0.00113685,3347.6,3347.5,4.58658942]
[1642076229495,0.00113685,3347.6,3347.5,6.37820618]
[1642076229891,0.00113685,3347.6,3347.5,5.8851169]
[1642076230497,0.44790966,3348.3,3347.5,7.35891781]
[1642076230695,0.44790966,3348.3,3347.8,1.49293]
[1642076230996,0.00341054,3348.2,3347.9,2.01560775]
[1642076231394,0.00284211,3348.1,3347.8,1.49293]
[1642076231594,0.00284211,3348.1,3348.0,4.62380091]
[1642076231793,0.44790966,3348.3,3348.1,1.55192446]
[1642076231995,0.44790966,3348.3,3348.1,2.29155253]
[1642076231996,0.27377629,3348.2,3348.1,2.29155253]
[1642076232249,0.27718683,3348.2,3348.0,1.47380091]
[1642076232452,1.77060683,3348.2,3348.0,1.47380091]
[1642076232654,0.00284211,3348.1,3348.0,1.47380091]
[1642076232848,0.00284211,3348.1,3347.8,2.23319115]
[1642076233052,0.49582826,3348.1,3347.8,2.23319115]
[1642076233254,0.74894369,3348.0,3347.8,2.23319115]
[1642076233453,0.3,3347.9,3347.8,2.23319115]
[1642076233653,0.30170527,3347.9,3347.8,2.23319115]
[1642076233853,0.30170527,3347.9,3347.5,2.96703529]
[1642076234254,0.74785684,3347.8,3347.5,2.96703529]
[1642076234452,0.74785684,3347.8,3347.5,4.14511305]
[1642076234654,0.3,3347.7,3347.5,4.14511305]
[1642076235054,0.3,3347.7,3347.5,2.46708758]
[1642076235260,0.3,3347.7,3347.6,1.47381529]
[1642076236089,0.3,3347.7,3347.6,1.1474896]
[1642076236491,0.3,3347.7,3347.6,0.64754189]
[1642076236690,0.3,3347.7,3347.6,3.21285505]
[1642076237089,0.3,3347.7,3347.6,2.89549435]
[1642076237491,0.3,3347.7,3347.6,0.33018119]
[1642076237688,0.16976652,3347.6,3347.5,3.55858545]
[1642076238092,0.3,3347.7,3347.5,3.55858545]
[1642076238291,0.3,3347.7,3347.6,2.56531316]
[1642076238491,1.85653753,3348.0,3347.6,2.56645001]
[1642076238691,0.74667,3347.8,3347.6,2.56645001]
[1642076238992,1.49339,3347.8,3347.6,2.56645001]
[1642076239490,1.49339,3347.8,3347.6,2.06647296]
[1642076239744,1.49339,3347.8,3347.6,0.00113685]
[1642076239944,0.49881085,3347.6,3347.5,0.99327229]
[1642076240553,0.3,3347.7,3347.5,0.99327229]
[1642076240750,1.63891272,3347.7,3347.5,0.99327229]
[1642076240950,3.50413011,3347.7,3347.5,0.99327229]
[1642076241153,1.866171,3347.6,3347.2,0.74679]
[1642076241355,0.74686,3347.4,3347.1,2.97304322]
[1642076241555,2.29038461,3347.3,3347.1,2.97304322]
[1642076241750,0.6,3347.3,3347.1,2.97304322]
[1642076241951,0.6,3347.3,3347.1,2.47333587]
[1642076242152,1.86611195,3347.2,3347.1,2.47333587]
[1642076242555,2.16611195,3347.2,3347.1,0.00284211]
[1642076242956,0.31771175,3347.1,3347.0,2.21224892]
[1642076243156,3.28943487,3347.1,3347.0,2.21224892]
[1642076243392,1.71473901,3347.1,3347.0,2.21565945]
[1642076243593,1.39702726,3347.1,3347.0,2.21565945]
[1642076244095,0.49632047,3347.0,3346.8,2.21224892]
[1642076244295,1.24322047,3347.0,3346.8,2.21224892]
[1642076244494,0.3,3346.9,3346.8,2.21224892]
[1642076244702,2.15238095,3346.9,3346.8,2.21224892]
[1642076244901,2.15238095,3346.9,3346.8,2.21338577]
[1642076245302,2.15238095,3346.9,3346.8,0.00113685]
[1642076246101,0.49877021,3346.8,3346.7,2.21224892]
[1642076246501,0.3,3346.8,3346.7,2.21224892]
[1642076247336,9.6877,3346.8,3346.3,0.03280517]
[1642076247538,0.74712,3346.6,3346.2,0.87219803]
[1642076247737,0.74712,3346.6,3346.2,0.00237172]
[1642076247738,2.74713,3346.5,3346.2,0.00237172]
[1642076247937,5.66296225,3346.3,3345.7,3.84872751]
[1642076248138,0.56419997,3346.2,3345.7,3.84872751]
[1642076248340,0.5068,3346.0,3345.8,0.00341054]
[1642076248536,0.5068,3346.0,3344.9,6.19384004]
[1642076248537,4.25,3345.8,3344.9,6.19384004]
[1642076248737,1.28383972,3345.1,3344.9,6.19384004]
[1642076248938,2.01653972,3345.1,3345.0,0.00454739]
[1642076249141,0.7327,3345.1,3345.0,0.00454739]
[1642076249341,1.0327,3345.1,3345.0,0.00454739]
[1642076249543,0.79541835,3345.0,3344.9,6.19384004]
[1642076249742,0.74745,3344.7,3344.2,4.91856116]
[1642076249943,0.74745,3344.5,3344.2,4.91856116]
[1642076250145,0.3,3344.5,3344.3,0.00397897]
[1642076250545,0.3,3345.1,3344.3,2.54378894]
[1642076250996,7.54181625,3345.4,3344.4,0.00341054]
[1642076251194,7.54181625,3345.4,3344.4,2.96007203]
[1642076251394,0.00170527,3345.3,3344.6,0.7472]
[1642076251594,0.00511581,3345.3,3344.6,0.7472]
[1642076251793,0.00454738,3345.2,3344.6,0.74390979]
[1642076252194,0.00397896,3345.1,3344.6,0.74390979]
[1642076252395,0.00397896,3345.1,3344.6,0.24738695]
[1642076252595,0.00341054,3345.0,3344.9,1.50217737]
[1642076252996,0.00341054,3345.0,3344.9,1.49888716]
[1642076253395,0.00341054,3345.0,3344.9,1.00236431]
[1642076253896,0.60341054,3345.0,3344.9,0.9990741]
[1642076254097,1.0,3345.7,3344.9,0.9990741]
[1642076254654,0.00113684,3345.2,3344.9,0.50255126]
[1642076254844,0.00113684,3345.2,3344.9,1.96655519]
[1642076255043,0.00113684,3345.2,3344.9,1.96326497]
[1642076255443,0.00113684,3345.2,3345.0,0.67248]
[1642076255948,0.00113684,3345.2,3345.0,0.17595716]
[1642076256548,0.00113684,3345.2,3345.0,0.17266714]
[1642076257348,0.00113684,3345.2,3344.9,1.96326497]
[1642076257349,0.00113684,3345.2,3344.9,0.49926104]
[1642076257548,0.60113684,3345.2,3344.9,0.49926104]
[1642076258149,0.30113684,3345.2,3344.9,0.49926104]
[1642076258387,0.30113684,3345.2,3345.1,1.46622308]
[1642076259186,0.30113684,3345.2,3344.9,1.84416104]
[1642076259387,0.30113684,3345.2,3344.9,0.49926104]
[1642076260188,0.30113684,3345.2,3345.0,2.56701462]
[1642076260589,0.30113684,3345.2,3345.0,3.86340848]
[1642076261693,0.30113684,3345.2,3345.1,2.56701462]
[1642076264049,0.30113684,3345.2,3345.0,4.06935397]
[1642076264650,0.30113684,3345.2,3345.1,2.56701462]
[1642076266292,0.30113684,3345.2,3345.0,2.56701462]
[1642076266492,0.30113684,3345.2,3345.0,3.99272339]
[1642076267293,0.30113684,3345.2,3345.0,4.66522339]
[1642076267493,0.00113684,3345.2,3345.0,4.66522339]
[1642076267695,0.00113684,3345.2,3345.0,3.99272339]
[1642076267894,0.00113684,3345.2,3345.1,2.56701462]
[1642076268495,0.60113684,3345.2,3345.1,2.56701462]
[1642076269493,0.60113684,3345.2,3345.0,2.56701462]
[1642076269494,0.3,3345.2,3345.0,2.56701462]
[1642076269763,1.34732,3345.2,3345.0,2.56701462]
[1642076269966,1.04732,3345.2,3345.0,2.56701462]
[1642076270162,2.04732,3345.2,3345.1,2.56701462]
[1642076270363,0.3,3345.2,3345.1,2.56701462]
[1642076270564,1.0,3345.2,3345.1,2.56701462]
[1642076270766,1.49474,3345.3,3345.1,2.56701462]
[1642076271166,2.54199,3345.3,3344.9,1.34053655]
[1642076271372,2.84199,3345.3,3344.9,1.34053655]
[1642076271569,1.0,3345.2,3345.0,0.00113684]
[1642076271769,0.74736,3345.2,3345.0,0.00113684]
[1642076271973,0.74725,3345.3,3345.0,0.00113684]
[1642076272168,0.74725,3345.3,3345.0,2.56815146]
[1642076273170,0.3,3345.2,3345.0,2.56815146]
[1642076277949,0.6,3345.2,3345.0,2.56815146]
[1642076279855,0.45841678,3345.3,3345.1,1.81682577]
[1642076280051,3.8398,3345.9,3345.0,3.24060146]
[1642076280052,3.8398,3345.9,3345.0,2.56815146]
[1642076280252,3.8398,3345.9,3345.0,4.56815146]
[1642076280453,3.8398,3345.9,3345.8,1.12419756]
[1642076280652,1.2123,3346.4,3345.9,0.04649864]
[1642076280898,0.74699,3346.2,3346.1,0.67229]
[1642076281303,0.75267424,3346.2,3346.1,0.67229]
[1642076281504,0.75267424,3346.2,3345.8,1.12419756]
[1642076281703,1.49969424,3346.2,3346.0,2.56701462]
[1642076281902,0.00511582,3346.1,3346.0,2.56701462]
[1642076282104,0.30511582,3346.1,3346.0,2.56701462]
[1642076282706,0.60511582,3346.1,3345.9,2.56701462]
[1642076283106,0.00454739,3346.0,3345.9,2.56701462]
[1642076283503,0.00454739,3346.0,3345.7,1.34462]
[1642076283703,1.49864739,3346.0,3345.7,1.34462]
[1642076283903,0.00397897,3345.9,3345.8,0.67236]
[1642076284104,0.30397897,3345.9,3345.8,0.67236]
[1642076284946,0.30397897,3345.9,3345.7,1.10010496]
[1642076285345,0.00341055,3345.8,3345.7,1.10010496]
[1642076285546,0.75055055,3345.8,3345.6,0.6724]
[1642076285745,0.75055055,3345.8,3345.4,1.34475]
[1642076285946,1.49722212,3345.7,3345.4,1.34475]
[1642076286346,1.49722212,3345.7,3345.3,2.13145486]
[1642076286347,0.0022737,3345.6,3345.3,2.13145486]
[1642076286846,1.79438,3345.7,3345.3,2.13145486]
[1642076286847,0.00170527,3345.5,3345.3,2.13145486]
[1642076287048,0.00170527,3345.5,3345.4,1.40562409]
[1642076287246,1.49438,3345.6,3345.4,1.40562409]
[1642076287447,1.4875589,3345.6,3345.4,1.40562409]
[1642076287649,1.4898326,3345.6,3345.4,1.40562409]
[1642076288701,1.4898326,3345.6,3345.5,1.45897486]
[1642076288900,1.4898326,3345.6,3345.2,1.47387162]
[1642076289101,0.74721,3345.5,3345.4,1.51735057]
[1642076289301,0.00170527,3345.5,3345.4,1.51735057]
[1642076289703,0.00170527,3345.5,3345.2,1.47387162]
[1642076289902,0.74891527,3345.5,3345.2,1.47387162]
[1642076290104,0.00113685,3345.4,3345.2,1.47387162]
[1642076291308,0.00113685,3345.4,3345.3,1.545935]
[1642076294450,0.00113685,3345.4,3345.3,2.218405]
[1642076294649,0.00113685,3345.4,3345.3,1.545935]
[1642076294847,0.00113685,3345.4,3345.2,1.47387162]
[1642076295906,0.00113685,3345.4,3345.3,0.67245]
[1642076296110,0.00113685,3345.4,3345.3,2.01572775]
[1642076297312,0.00113685,3345.4,3345.3,1.34327775]
[1642076298616,0.00113685,3345.4,3345.3,3.91050235]
[1642076298816,0.00113685,3345.4,3345.3,2.5672246]
[1642076299016,1.89438473,3345.4,3345.3,2.5672246]
[1642076299217,1.89438473,3345.4,3345.3,1.47387162]
[1642076299653,0.00113685,3345.4,3345.3,1.47387162]
[1642076299848,1.4946,3345.3,3345.0,5.02852793]
[1642076300349,1.4946,3345.3,3345.0,0.00113684]
[1642076301354,0.7473,3345.2,3345.0,0.00113684]
[1642076301551,0.7473,3345.2,3344.9,3.13271649]
[1642076301752,1.49459,3345.2,3344.9,3.13271649]
[1642076302152,1.49459,3345.2,3344.9,2.46016649]
[1642076302552,2.2419357,3345.3,3344.9,2.46016649]
[1642076302755,1.9344086,3345.2,3344.9,2.46016649]
[1642076302954,1.24877229,3344.7,3344.6,3.0669]
[1642076303153,1.24877229,3344.7,3344.5,3.9972]
[1642076303154,1.94624069,3344.7,3344.5,3.9972]
[1642076303400,1.94624069,3344.7,3344.4,3.67081851]
[1642076303798,1.94624069,3344.7,3344.1,3.85051459]
[1642076303997,1.94624069,3344.7,3343.8,1.33508523]
[1642076304197,1.94624069,3344.7,3344.2,0.00227369]
[1642076304999,1.90587867,3344.6,3344.1,0.00284211]
[1642076305198,1.4949727,3344.5,3344.1,0.00284211]
[1642076305399,1.91494036,3344.4,3344.1,0.00284211]
[1642076305600,2.9899427,3344.5,3344.1,0.00284211]
[1642076305902,2.9899427,3344.5,3344.1,0.67272]
[1642076306106,2.660621,3344.4,3344.1,0.67272]
[1642076306306,3.408111,3344.4,3343.9,0.00397896]
[1642076306706,1.49498,3344.4,3343.8,0.00454738]
[1642076307169,0.74756,3344.0,3343.8,0.00454738]
[1642076307759,0.74756,3344.0,3343.6,0.00568423]
[1642076307960,2.24273,3344.0,3343.6,0.00568423]
[1642076308362,2.9903098,3344.0,3343.6,0.00568423]
[1642076309160,0.74759,3343.9,3343.6,0.00568423]
[1642076309361,0.74759,3343.8,3343.5,0.00625265]
[1642076309568,0.74759,3343.8,3343.6,0.67282]
[1642076309767,0.74759,3343.8,3343.6,2.16230987]
[1642076309963,0.74759,3343.8,3343.7,0.00511581]
[1642076310766,0.74759,3343.9,3343.7,0.00511581]
[1642076311008,0.74759,3343.9,3343.7,0.03037636]
[1642076311213,0.74759,3343.9,3343.7,0.00511581]
[1642076311411,0.74759,3343.9,3343.8,0.00454738]
[1642076311613,0.74759,3343.9,3343.7,2.97429062]
[1642076311614,0.74759,3343.9,3343.7,2.97940643]
[1642076311809,0.74759,3343.9,3343.8,0.00454738]
[1642076312408,1.4952232,3343.9,3343.7,2.23018899]
[1642076312610,0.74759,3343.9,3343.7,2.23018899]
[1642076313110,0.74767,3343.8,3343.7,2.97429062]
[1642076313715,0.74767,3343.8,3343.7,5.20297447]
[1642076313910,0.74767,3343.8,3343.7,2.22868385]
[1642076314782,0.74767,3343.8,3343.5,2.97429062]
[1642076314981,1.49521,3343.8,3343.7,1.34184689]
[1642076315179,1.49521,3343.8,3343.6,0.00113685]
[1642076315580,1.49521,3343.8,3343.6,3.64824747]
[1642076316182,1.49521,3343.8,3343.7,2.56840233]
[1642076317083,0.74767,3343.8,3343.7,2.56840233]
[1642076317483,0.74767,3343.8,3343.7,4.79209797]
[1642076317685,0.37599369,3344.0,3343.7,4.79209797]
[1642076317885,0.37599369,3344.0,3343.7,5.40660114]
[1642076318086,0.37599369,3344.0,3343.7,5.22533569]
[1642076318285,1.87116369,3344.0,3343.7,5.22533569]
[1642076318498,1.49508,3343.9,3343.7,4.55253569]
[1642076318904,1.49508,3343.9,3343.7,2.22369564]
[1642076319300,1.49508,3343.9,3343.7,2.89650564]
[1642076322355,1.49508,3343.9,3343.7,0.67281]
[1642076322558,2.2427,3344.0,3343.8,1.86324786]
[1642076322755,2.2427,3344.0,3343.8,3.20860786]
[1642076323155,2.2427,3344.0,3343.8,1.34536]
[1642076323561,2.2427,3344.0,3343.8,4.59715926]
[1642076323758,2.2427,3344.0,3343.8,1.34536]
[1642076325906,0.74756,3344.1,3343.8,1.34536]
[1642076326104,0.74732,3344.2,3343.9,1.87819732]
[1642076326304,0.00113684,3344.0,3343.9,3.97058502]
[1642076326505,3.8661,3345.2,3344.0,6.7]
[1642076326705,3.8661,3345.2,3344.1,1.96633416]
[1642076326904,0.00625266,3345.1,3344.1,1.96633416]
[1642076327304,0.74725,3344.7,3344.3,2.01748]
[1642076327503,0.74725,3344.7,3344.5,2.84669265]
[1642076327703,0.00341054,3344.6,3344.5,2.84669265]
[1642076327904,0.60341054,3344.6,3344.5,2.84669265]
[1642076328505,0.60341054,3344.6,3344.5,2.34696928]
[1642076328704,0.60341054,3344.6,3344.5,2.33802273]
[1642076329507,0.60341054,3344.6,3344.5,1.83828441]
[1642076330162,0.60341054,3344.6,3344.5,1.59035918]
[1642076330358,0.00341054,3344.6,3344.5,1.59035918]
[1642076330762,0.00341054,3344.6,3344.5,1.3385461]
[1642076330961,0.00341054,3344.6,3344.3,2.01748]
[1642076331162,0.77007824,3344.5,3344.3,2.01748]
[1642076331367,0.99809736,3344.5,3344.3,2.01748]
[1642076331561,0.0022737,3344.4,3344.3,2.01748]
[1642076332165,0.50201446,3344.4,3344.2,0.67258]
[1642076332563,0.00170527,3344.3,3344.2,0.67258]
[1642076333166,0.00170527,3344.3,3344.2,2.90725456]
[1642076334409,0.00170527,3344.3,3344.2,0.67258]
[1642076334709,0.00170527,3344.3,3344.2,0.17283924]
[1642076335907,1.07435887,3344.2,3344.0,1.34532]
[1642076336107,1.82175887,3344.2,3344.0,1.34532]
[1642076336308,1.49593685,3344.2,3344.0,1.34532]
[1642076337555,1.49593685,3344.2,3344.1,1.34531]
[1642076337955,1.79593685,3344.2,3344.1,1.34531]
[1642076338555,2.09593685,3344.2,3344.1,1.34531]
[1642076338757,2.09593685,3344.2,3344.1,0.84547064]
[1642076339555,2.09593685,3344.2,3344.1,0.60888159]
[1642076339759,1.79593685,3344.2,3344.1,0.60888159]
[1642076339961,1.79593685,3344.2,3344.1,0.34567253]
[1642076340558,1.79593685,3344.2,3344.1,0.10908348]
[1642076341030,0.15412557,3344.1,3343.7,1.34548]
[1642076341330,1.495,3344.0,3343.8,0.00113685]
[1642076341531,0.3,3343.9,3343.8,0.00113685]
[1642076342732,1.0475,3343.9,3343.8,0.00113685]
[1642076343133,1.0475,3343.9,3343.8,1.13431891]
[1642076345767,1.0475,3343.9,3343.8,0.00113685]
[1642076346173,1.0475,3343.9,3343.8,2.56949765]
[1642076347170,1.24739173,3344.0,3343.8,2.56949765]
[1642076347573,1.24739173,3344.0,3343.8,3.24222765]
[1642076348173,0.7475,3343.9,3343.8,3.24222765]
[1642076349618,1.0475,3343.9,3343.8,3.24222765]
[1642076350621,0.3,3343.9,3343.8,3.24222765]
[1642076351822,0.3,3343.9,3343.8,5.09818541]
[1642076352259,0.00113685,3344.2,3343.8,5.09818541]
[1642076352665,0.50102858,3344.2,3343.8,5.09818541]
[1642076352866,0.80102858,3344.2,3344.0,0.67256]
[1642076353070,0.50102858,3344.2,3344.1,3.99043126]
[1642076354267,0.50102858,3344.2,3344.1,5.10856944]
[1642076354566,0.50102858,3344.2,3344.1,6.10856944]
[1642076354766,0.3,3344.5,3344.2,3.05]
[1642076354965,0.3,3344.5,3344.3,2.52157226]
[1642076355165,0.00113685,3344.4,3344.3,3.52157226]
[1642076355365,0.00113685,3344.4,3344.3,3.02179657]
[1642076355566,0.30284212,3344.7,3344.3,3.02179657]
[1642076355768,0.30284212,3344.7,3344.3,4.44931471]
[1642076356010,0.30284212,3344.7,3344.3,3.10004814]
[1642076356011,0.00227369,3344.6,3344.3,3.10004814]
[1642076356411,0.00170527,3344.5,3344.3,3.10004814]
[1642076356609,0.00170527,3344.5,3344.3,2.60027246]
[1642076356811,0.00227369,3344.6,3344.3,2.60027246]
[1642076357212,0.03068203,3344.5,3344.3,1.42751814]
[1642076357514,0.00227369,3344.6,3344.3,1.42751814]
[1642076357712,0.00227369,3344.6,3344.3,2.10004814]
[1642076357912,0.00170527,3344.5,3344.3,2.10004814]
[1642076358316,0.00227369,3344.6,3344.3,1.9271754]
[1642076358712,0.00170527,3344.5,3344.3,1.60027246]
[1642076359111,0.00227369,3344.6,3344.3,1.60027246]
[1642076359316,0.02815614,3344.5,3344.3,2.84770127]
[1642076359516,5.0367,3345.2,3344.3,2.84770127]
[1642076359517,3.8661,3345.2,3344.4,8.82887989]
[1642076359763,3.8661,3345.2,3344.8,0.67242]
[1642076359961,0.6,3345.2,3344.8,0.67242]
[1642076360163,0.3,3345.2,3344.8,0.67242]
[1642076360460,0.74728,3345.1,3344.9,1.30439072]
[1642076360661,0.74724,3345.0,3344.9,1.30439072]
[1642076360864,1.05008212,3345.0,3344.8,0.67242]
[1642076361268,0.00227369,3344.9,3344.8,0.67242]
[1642076361768,0.00227369,3344.9,3344.8,2.50987103]
[1642076361968,2.71062012,3345.7,3344.8,2.50987103]
[1642076361969,1.1657,3345.7,3344.9,6.7]
[1642076362172,0.4493878,3345.8,3345.3,0.6723]
[1642076362371,0.4493878,3345.8,3345.4,1.26076286]
[1642076362372,0.00341054,3345.5,3345.4,1.26076286]
[1642076362570,0.00341054,3345.5,3345.4,1.23617583]
[1642076363814,0.00341054,3345.5,3345.4,6.03381086]
[1642076364418,0.00341054,3345.5,3345.4,4.79763503]
[1642076366719,0.00341054,3345.5,3345.2,2.5683608]
[1642076366918,1.49779054,3345.5,3345.2,2.5683608]
[1642076367167,0.30284212,3345.4,3345.2,2.5683608]
[1642076367359,0.60284212,3345.4,3345.2,2.5683608]
[1642076367559,0.0022737,3345.3,3345.2,2.5683608]
[1642076367760,0.0022737,3345.3,3345.1,2.83408615]
[1642076367961,0.0022737,3345.3,3345.2,1.48913615]
[1642076368167,0.6,3345.4,3345.2,1.48913615]
[1642076368368,0.6,3345.4,3345.2,2.16159615]
[1642076368568,0.6,3345.4,3345.2,4.72995695]
[1642076369368,0.6,3345.4,3345.3,4.05749695]
[1642076369767,0.60284212,3345.4,3345.3,4.05749695]
[1642076370068,0.30284212,3345.4,3345.3,4.05749695]
[1642076370272,0.30284212,3345.4,3345.3,5.8906269]
[1642076370910,0.30284212,3345.4,3345.3,6.63076498]
[1642076372618,0.30284212,3345.4,3345.3,4.40149075]
[1642076372817,0.30284212,3345.4,3345.3,2.5683608]
[1642076373019,0.30284212,3345.4,3345.3,4.40503049]
[1642076373418,0.30284212,3345.4,3345.3,4.35503049]
[1642076373819,0.30284212,3345.4,3345.3,6.58430472]
[1642076374218,0.00284212,3345.4,3345.3,6.58430472]
[1642076378275,1.1452,3345.9,3345.5,1.10713044]
[1642076378510,0.6,3346.1,3345.6,0.59758]
[1642076378714,0.00170527,3345.7,3345.6,0.59758]
[1642076379312,0.00170527,3345.7,3345.6,1.72637438]
[1642076379515,0.00170527,3345.7,3345.6,3.56172914]
[1642076379914,0.00170527,3345.7,3345.6,5.03389625]
[1642076380117,0.4402917,3346.2,3345.9,0.59753]
[1642076380521,0.00170527,3346.0,3345.9,0.59753]
[1642076382172,0.00170527,3346.0,3345.9,4.44753]
[1642076383169,0.00170527,3346.0,3345.9,0.59753]
[1642076390473,0.29310573,3346.1,3345.9,0.59753]
[1642076393713,0.29310573,3346.1,3346.0,2.56745369]
[1642076400167,1.9342317,3346.2,3346.0,2.56745369]
[1642076400767,1.9342317,3346.2,3346.0,2.46745369]
[1642076401619,0.3,3346.1,3345.9,2.08577116]
[1642076402925,0.3,3346.1,3346.0,1.48824116]
[1642076403722,0.2,3346.1,3346.0,1.48824116]
[1642076405964,0.5,3346.1,3346.0,1.48824116]
[1642076406165,2.37543089,3346.1,3346.0,1.48824116]
[1642076406666,0.5,3346.1,3346.0,1.48824116]
[1642076408416,0.2,3346.1,3346.0,1.48824116]
[1642076408816,0.2,3346.1,3345.9,0.59753]
[1642076409823,0.4402917,3346.2,3345.9,0.59753]
[1642076410020,0.4402917,3346.2,3345.9,1.59753]
[1642076410420,0.4402917,3346.2,3345.9,2.3443752]
[1642076410719,1.49365,3346.8,3346.7,1.35304417]
[1642076411021,2.09365,3346.8,3346.7,1.35304417]
[1642076411220,2.09365,3346.8,3346.5,1.1949]
[1642076411419,2.54221796,3346.8,3346.0,2.97236564]
[1642076411623,2.54221796,3346.8,3346.6,0.59745]
[1642076411624,0.00397897,3346.7,3346.6,0.59745]
[1642076412022,1.49782897,3346.7,3346.6,0.59745]
[1642076412667,1.79782897,3346.7,3346.6,0.59745]
[1642076412868,1.49782897,3346.7,3346.6,0.59745]
[1642076413067,1.49782897,3346.7,3346.6,2.09183384]
[1642076413869,1.79782897,3346.7,3346.6,0.59745]
[1642076414269,0.00397897,3346.7,3346.6,0.59745]
[1642076414872,0.00397897,3346.7,3346.6,0.59825]
[1642076415919,0.00397897,3346.7,3346.6,5.22425]
[1642076416123,0.74856796,3346.8,3346.7,6.35]
[1642076416322,0.3,3346.8,3346.7,9.53514]
[1642076416521,6.8007,3347.6,3346.7,9.53514]
[1642076416522,6.8007,3347.6,3346.7,10.53514]
[1642076416822,0.00454738,3347.5,3347.2,1.22778403]
[1642076417024,0.00454738,3347.5,3347.3,1.88998763]
[1642076417223,0.00397896,3347.4,3347.3,1.88998763]
[1642076417828,0.00397896,3347.4,3347.3,4.88998763]
[1642076418028,0.00397896,3347.4,3347.3,4.45647722]
[1642076418628,0.00397896,3347.4,3347.3,2.56648959]
[1642076418927,0.00397896,3347.4,3347.3,4.43197495]
[1642076419675,0.00397896,3347.4,3347.3,8.13197495]
[1642076420069,1.18380315,3347.9,3347.3,8.13197495]
[1642076420070,0.43724315,3347.9,3347.3,8.13197495]
[1642076420272,0.43724315,3347.9,3347.3,4.43197495]
[1642076420468,0.00170527,3347.7,3347.3,4.43197495]
[1642076420871,0.00113685,3347.6,3347.4,4.05611339]
[1642076421076,0.00113685,3347.6,3347.5,2.45497772]
[1642076421277,0.74653,3347.8,3347.5,2.45497772]
[1642076421278,1.04880369,3347.8,3347.5,2.45497772]
[1642076421475,0.00113685,3347.6,3347.5,2.45497772]
[1642076422376,0.00113685,3347.6,3347.5,3.20147562]
[1642076422778,0.00113685,3347.6,3347.5,5.65147562]
[1642076422974,0.00113685,3347.6,3347.5,8.2178446]
[1642076423615,0.00113685,3347.6,3347.5,9.2178446]
[1642076424219,0.3,3347.8,3347.6,6.7]
[1642076424521,0.49994767,3347.9,3347.7,1.91221845]
[1642076424722,0.3,3347.9,3347.7,4.27942096]
[1642076424922,0.00113684,3347.8,3347.7,4.27942096]
[1642076425326,0.00284211,3348.1,3347.9,1.47194041]
[1642076425523,0.30284211,3348.1,3347.9,2.81550051]
[1642076425726,0.00227369,3348.0,3347.9,2.81550051]
[1642076425923,0.00227369,3348.0,3347.9,4.81550051]
[1642076426128,0.00227369,3348.0,3347.9,3.24150051]
[1642076426623,0.00227369,3348.0,3347.9,6.14508041]
[1642076427674,1.1812,3348.7,3348.0,6.7]
[1642076427878,0.49994767,3348.7,3348.3,0.59708]
[1642076428073,0.79994767,3348.7,3348.3,0.59708]
[1642076428875,1.54633767,3348.7,3348.3,0.59708]
[1642076429275,1.04633,3348.6,3348.5,1.26738915]
[1642076429475,1.34633,3348.6,3348.5,1.26738915]
[1642076430075,1.34633,3348.6,3348.5,2.56838315]
[1642076431720,1.04633,3348.6,3348.5,2.56838315]
[1642076431919,0.49994767,3348.7,3348.5,4.58424075]
[1642076432119,0.44787217,3349.0,3348.6,8.17404645]
[1642076432622,0.00511581,3348.9,3348.6,8.17404645]
[1642076433025,0.00454739,3348.8,3348.6,8.17404645]
[1642076433320,0.3,3348.9,3348.7,8.30726795]
[1642076433521,0.3,3348.9,3348.8,1.89495539]
[1642076433720,0.30511581,3348.9,3348.8,1.89495539]
[1642076434520,0.30511581,3348.9,3348.8,5.54495539]
[1642076434776,0.30511581,3348.9,3348.8,1.89495539]
[1642076435474,0.30511581,3348.9,3348.7,1.79089]
[1642076435981,0.00454739,3348.8,3348.7,1.79089]
[1642076436983,0.00454739,3348.8,3348.7,1.76089]
[1642076440622,0.00454739,3348.8,3348.7,8.20505046]
[1642076441023,0.00454739,3348.8,3348.7,3.80505046]
[1642076441223,0.25454739,3349.1,3348.7,3.80505046]
[1642076441426,0.79994767,3349.2,3348.7,3.80505046]
[1642076441625,0.00113685,3349.0,3348.7,3.80505046]
[1642076441825,0.00113685,3349.0,3348.7,6.37043281]
[1642076442029,0.00113685,3349.0,3348.8,1.0]
[1642076442273,0.00113685,3349.0,3348.9,5.9367473]
[1642076442573,0.00113685,3349.0,3348.9,3.69094784]
[1642076442978,1.99236767,3349.6,3349.3,1.1515596]
[1642076443178,0.3,3349.5,3348.9,3.69094784]
[1642076443382,0.74625,3349.3,3348.9,6.25633019]
[1642076443579,1.04625,3349.3,3348.9,4.31654289]
[1642076443779,0.00113684,3349.2,3348.9,4.31654289]
[1642076444179,0.00113684,3349.2,3349.0,2.56538235]
[1642076444379,0.00113684,3349.2,3349.1,0.59701]
[1642076445916,0.00113684,3349.2,3349.1,3.16239235]
[1642076446524,0.00113684,3349.2,3349.1,2.56538235]
[1642076446525,1.92626969,3349.2,3349.1,2.56538235]
[1642076447242,3.44275018,3349.2,3349.1,2.56538235]
[1642076447422,3.44275018,3349.2,3348.1,2.96285182]
[1642076447423,3.09994767,3349.1,3349.0,2.56538235]
[1642076447722,2.91986636,3349.1,3348.2,1.19436]
[1642076447922,2.91986636,3349.1,3348.4,0.59721]
[1642076447923,0.74649,3348.7,3348.4,0.59721]
[1642076448123,2.03785385,3348.6,3348.3,0.00397897]
[1642076448323,0.49994767,3348.4,3348.3,0.00397897]
[1642076448528,0.79994767,3348.4,3348.3,0.00397897]
[1642076448925,1.09994767,3348.4,3348.3,0.00397897]